bitfinex-derivatives/quotes_SOLF0:USTF0_20250524
["timestamp","ask_amount","ask_price","bid_price","bid_amount"]
[1748123325451,16.15050305,177.01,177.0,2.879e-05]
[1748123325647,21.28242131,177.01,177.0,2.879e-05]
[1748123326758,16.15050305,177.01,177.0,2.879e-05]
[1748123326948,21.28242131,177.01,177.0,2.879e-05]
[1748123327754,16.15050305,177.01,177.0,2.879e-05]
[1748123327954,21.28242131,177.01,177.0,2.879e-05]
[1748123328856,16.15050305,177.01,177.0,2.879e-05]
[1748123329055,21.28242131,177.01,177.0,2.879e-05]
[1748123334155,16.15050305,177.01,177.0,2.879e-05]
[1748123334653,21.28242131,177.01,177.0,2.879e-05]
[1748123334858,10.77951826,177.01,177.0,2.879e-05]
[1748123343266,5.6496,176.95,176.94,1.9289]
[1748123371394,5.6496,176.95,176.93,0.0415711]
[1748123380602,5.6496,176.95,176.93,5.6917711]
[1748123380900,5.6496,176.95,176.93,0.0415711]
[1748123394711,12.68990551,176.96,176.93,5.6916711]
[1748123394916,7.04060551,176.96,176.93,0.0415711]
[1748123396610,5.6496,176.95,176.93,0.0415711]
[1748123405533,12.68990551,176.96,176.93,5.6915711]
[1748123405932,7.04060551,176.96,176.93,0.0415711]
[1748123406133,7.04060551,176.96,176.94,5.6499]
[1748123420539,7.04060551,176.96,176.95,5.6496]
[1748123422340,7.04060551,176.96,176.95,10.78020309]
[1748123423747,0.04278708,176.96,176.95,10.78020309]
[1748123423949,6.99781843,176.99,176.98,5.6486]
[1748123424753,6.99781843,176.99,176.98,124.6086]
[1748123426054,0.03946303,177.0,176.99,5.6483]
[1748123426346,0.03946303,177.0,176.99,10.77890309]
[1748123428153,0.03946303,177.0,176.99,5.6483]
[1748123435860,0.03946303,177.0,176.99,10.77647257]
[1748123436059,0.03946303,177.0,176.99,10.77633471]
[1748123442764,0.03946303,177.0,176.99,10.77624864]
[1748123443060,6.303e-05,177.0,176.99,10.77624864]
[1748123443761,6.303e-05,177.0,176.99,14.77624864]
[1748123447164,6.303e-05,177.0,176.99,14.77571267]
[1748123470176,6.303e-05,177.0,176.99,14.77578893]
[1748123470783,6.303e-05,177.0,176.99,14.77575402]
[1748123473991,6.303e-05,177.0,176.99,14.77572063]
[1748123474890,6.303e-05,177.0,176.99,14.77561486]
[1748123477290,6.303e-05,177.0,176.99,14.77558807]
[1748123479494,6.303e-05,177.0,176.99,133.21558807]
[1748123485396,6.303e-05,177.0,176.99,133.21553028]
[1748123487908,6.99781843,177.07,177.05,5.6461]
[1748123489504,6.99781843,177.07,177.06,5.6461]
[1748123497003,1.843e-05,177.07,177.06,129.21333028]
[1748123497408,0.03736649,177.08,177.07,5.6458]
[1748123499210,0.03734806,177.08,177.07,5.6458]
[1748123514208,0.03734806,177.08,177.07,9.6458]
[1748123517220,0.03734806,177.08,177.07,5.6458]
[1748123519822,3.9156,177.14,177.11,5.6445]
[1748123520718,3.95182319,177.14,177.11,5.68402163]
[1748123521516,3.95182319,177.14,177.12,5.6441]
[1748123521924,0.03622319,177.14,177.12,5.6441]
[1748123531927,0.03622319,177.14,177.13,5.6438]
[1748123537724,12.63777045,177.21,177.17,5.6425]
[1748123537923,12.63777045,177.21,177.16,5.12723028]
[1748123538531,10.87157045,177.22,177.18,5.12723028]
[1748123538831,10.91480507,177.22,177.18,10.81195647]
[1748123539037,10.91480507,177.22,177.18,5.68472619]
[1748123539830,9.55943462,177.22,177.19,5.6419]
[1748123541632,0.04323462,177.22,177.19,5.6419]
[1748123543430,5.68433462,177.22,177.19,5.6419]
[1748123543928,0.04323462,177.22,177.19,5.6419]
[1748123544433,5.68423462,177.22,177.19,5.6419]
[1748123547135,5.68423462,177.22,177.18,5.68492619]
[1748123550139,5.6413,177.21,177.18,5.68492619]
[1748123550846,5.68433462,177.22,177.18,5.68492619]
[1748123553948,5.6414,177.21,177.18,5.68492619]
[1748123556951,5.68423462,177.22,177.18,5.68492619]
[1748123558555,0.04323462,177.22,177.18,0.04272619]
[1748123559452,5.6415,177.21,177.18,0.04272619]
[1748123560954,0.04323462,177.22,177.18,0.04272619]
[1748123562254,5.6414,177.21,177.18,0.04272619]
[1748123564954,5.6417,177.2,177.18,0.04272619]
[1748123566461,5.6414,177.21,177.18,0.04272619]
[1748123567359,5.6416,177.2,177.18,0.04272619]
[1748123567560,0.04323462,177.22,177.18,5.68492619]
[1748123567858,5.6417,177.2,177.18,0.04272619]
[1748123568158,0.04323462,177.22,177.18,5.68492619]
[1748123569263,5.6415,177.21,177.18,5.68492619]
[1748123575562,12.63787045,177.21,177.18,5.68492619]
[1748123582868,6.99637045,177.2,177.18,5.68492619]
[1748123591076,12.63787045,177.21,177.18,5.68492619]
[1748123593573,6.99637045,177.2,177.18,5.68492619]
[1748123597980,12.63777045,177.21,177.18,5.68492619]
[1748123602481,6.99637045,177.21,177.19,5.6419]
[1748123602677,6.99637045,177.21,177.18,0.04272619]
[1748123603680,12.63777045,177.21,177.18,5.68472619]
[1748123603881,6.99637045,177.21,177.18,0.04272619]
[1748123604184,6.99637045,177.21,177.19,5.6417]
[1748123605081,6.99637045,177.21,177.2,5.6416]
[1748123615591,7.03960507,177.22,177.2,5.6416]
[1748123618092,6.99637045,177.21,177.2,5.6416]
[1748123622296,7.03960507,177.22,177.2,5.6416]
[1748123624294,0.04323462,177.22,177.2,5.6416]
[1748123624494,0.04323462,177.22,177.21,5.6413]
[1748123624896,0.04323462,177.22,177.2,5.6415]
[1748123633201,5.68423462,177.22,177.2,5.6415]
[1748123634309,0.04323462,177.22,177.2,5.6415]
[1748123635108,5.68423462,177.22,177.2,5.6415]
[1748123635909,0.04323462,177.22,177.2,5.6415]
[1748123636606,5.68423462,177.22,177.2,5.6415]
[1748123637209,0.04323462,177.22,177.2,5.6415]
[1748123638611,5.68423462,177.22,177.2,5.6415]
[1748123639813,0.04323462,177.22,177.2,5.6415]
[1748123641910,0.04323462,177.22,177.18,5.16030208]
[1748123641911,5.68433462,177.22,177.19,5.6418]
[1748123642111,5.68433462,177.22,177.18,5.16030208]
[1748123642312,0.04323462,177.22,177.18,5.16030208]
[1748123642513,0.04323462,177.22,177.2,5.6414]
[1748123655224,0.04323462,177.22,177.21,5.6413]
[1748123655428,0.04323462,177.22,177.18,5.15940978]
[1748123656522,0.04323462,177.22,177.2,5.6414]
[1748123658428,0.04323462,177.22,177.21,5.6413]
[1748123661232,7.03960507,177.22,177.21,5.6413]
[1748123667433,0.04323462,177.22,177.21,5.6413]
[1748123672045,0.04323462,177.22,177.21,10.75764987]
[1748123673138,0.04323462,177.22,177.21,127.43764987]
[1748123673943,6.99637045,177.26,177.25,5.64]
[1748123675140,7.02905191,177.27,177.25,5.64]
[1748123676945,7.02905191,177.27,177.26,5.6397]
[1748123677439,0.03268146,177.27,177.26,5.6397]
[1748123677947,0.03268146,177.27,177.26,10.75604987]
[1748123679746,6.99637045,177.32,177.31,5.6381]
[1748123679943,6.99637045,177.32,177.31,10.74736315]
[1748123680345,10.49672764,177.34,177.33,5.6375]
[1748123680640,10.49672764,177.34,177.33,10.74676315]
[1748123681947,5.6357,177.39,177.33,10.74676315]
[1748123682147,5.6357,177.39,177.34,5.10926315]
[1748123682339,10.85256315,177.42,177.34,5.10926315]
[1748123682543,10.85256315,177.42,177.36,0.04264325]
[1748123683347,5.6362,177.38,177.36,0.04264325]
[1748123683647,10.85256315,177.42,177.36,0.04264325]
[1748123684446,5.6362,177.37,177.36,0.04264325]
[1748123689252,5.6372,177.34,177.32,5.10926315]
[1748123690653,5.6372,177.34,177.31,5.15270477]
[1748123690959,5.6372,177.34,177.31,10.79070477]
[1748123692053,5.6372,177.34,177.32,5.10926315]
[1748123692255,5.6372,177.34,177.32,5.10897987]
[1748123694356,0.04038515,177.35,177.32,5.10897987]
[1748123694550,0.04038515,177.35,177.33,5.10897987]
[1748123694849,0.04038515,177.35,177.34,5.10897987]
[1748123695256,5.67728515,177.35,177.34,5.10897987]
[1748123696450,5.67728515,177.35,177.33,5.10897987]
[1748123698254,5.67728515,177.35,177.32,5.6378]
[1748123698649,0.04038515,177.35,177.33,5.6375]
[1748123702958,0.04038515,177.35,177.34,5.6372]
[1748123727591,2.89713091,177.39,177.36,5.6365]
[1748123728780,2.89713091,177.39,177.36,5.67892685]
[1748123731782,5.6359,177.38,177.36,0.04242685]
[1748123731982,126.79672764,177.4,177.36,0.04242685]
[1748123732290,131.90620995,177.4,177.36,0.04242685]
[1748123733093,10.49672764,177.39,177.36,0.04242685]
[1748123733592,5.6362,177.37,177.36,0.04242685]
[1748123741794,16.13272764,177.38,177.36,0.04242685]
[1748123743604,5.636,177.38,177.36,0.04242685]
[1748123746302,10.49672764,177.39,177.36,5.67872685]
[1748123747005,10.49672764,177.39,177.36,0.04242685]
[1748123747205,10.49672764,177.39,177.36,5.67892685]
[1748123747910,5.6354,177.4,177.36,5.67892685]
[1748123754212,5.6354,177.4,177.37,5.6362]
[1748123766230,5.6351,177.41,177.38,5.6359]
[1748123771432,134.13292764,177.42,177.39,5.6355]
[1748123772131,16.13142764,177.42,177.39,5.6355]
[1748123772326,16.13142764,177.42,177.36,0.04242685]
[1748123772327,10.49672764,177.42,177.36,5.15096943]
[1748123772527,10.49672764,177.42,177.37,5.10854258]
[1748123773330,10.49672764,177.42,177.36,0.04242685]
[1748123773635,5.635,177.41,177.38,5.6358]
[1748123776540,126.21672764,177.44,177.38,5.6358]
[1748123776838,5.6351,177.41,177.38,5.6358]
[1748123782541,5.6347,177.42,177.38,5.6358]
[1748123782838,131.32527022,177.44,177.38,5.6358]
[1748123783140,5.6349,177.41,177.38,5.6358]
[1748123784442,126.21672764,177.44,177.38,5.10854258]
[1748123784946,5.6343,177.43,177.4,5.635]
[1748123785243,5.6343,177.43,177.4,5.67107271]
[1748123790349,121.354,177.44,177.41,5.6348]
[1748123790849,121.354,177.44,177.4,5.67117271]
[1748123791053,121.354,177.44,177.4,0.03607271]
[1748123791348,131.85072764,177.44,177.4,0.03607271]
[1748123791550,131.85072764,177.44,177.4,5.67107271]
[1748123792351,5.6343,177.43,177.4,5.67107271]
[1748123792550,126.21672764,177.44,177.4,5.67107271]
[1748123792949,5.6343,177.43,177.4,5.67107271]
[1748123793250,126.21672764,177.44,177.4,5.67107271]
[1748123793551,131.85102764,177.44,177.4,5.67107271]
[1748123793851,126.21672764,177.44,177.4,5.67107271]
[1748123794050,126.21672764,177.44,177.41,5.6349]
[1748123794250,115.72,177.44,177.41,5.6349]
[1748123794850,121.354,177.44,177.41,5.6349]
[1748123796453,121.354,177.44,177.4,5.67117271]
[1748123799354,5.6344,177.43,177.4,5.67117271]
[1748123805048,16.13072764,177.44,177.41,5.6349]
[1748123806357,5.634,177.44,177.41,5.6349]
[1748123807655,5.634,177.44,177.4,5.67127271]
[1748123808755,5.634,177.44,177.41,5.6348]
[1748123818172,5.6337,177.45,177.42,5.6346]
[1748123819875,131.28982764,177.47,177.43,5.634]
[1748123821473,125.65672764,177.47,177.43,5.634]
[1748123821869,131.28992764,177.47,177.43,5.634]
[1748123822277,16.12992764,177.47,177.43,5.634]
[1748123822870,16.12992764,177.47,177.41,5.10854258]
[1748123822871,5.6335,177.46,177.42,5.6345]
[1748123824573,16.12982764,177.47,177.44,5.634]
[1748123824765,16.12982764,177.47,177.44,5.67394058]
[1748123825171,10.49672764,177.47,177.44,5.67394058]
[1748123826175,20.00822764,177.48,177.44,5.67394058]
[1748123827674,5.633,177.47,177.44,5.67394058]
[1748123830377,10.49672764,177.48,177.45,5.6335]
[1748123831076,125.65672764,177.49,177.45,5.6335]
[1748123831575,5.6327,177.48,177.45,5.6335]
[1748123832683,5.6327,177.48,177.44,5.67384058]
[1748123832972,5.6327,177.48,177.44,0.03994058]
[1748123833177,10.49672764,177.49,177.44,5.14304213]
[1748123834270,16.12922764,177.49,177.45,5.6337]
[1748123834979,16.12922764,177.49,177.46,5.6332]
[1748123835167,16.12922764,177.49,177.44,5.14304213]
[1748123835372,16.12922764,177.49,177.44,5.14193365]
[1748123835577,5.6325,177.49,177.45,5.6336]
[1748123840689,5.6321,177.5,177.46,5.6331]
[1748123842575,5.6321,177.5,177.47,5.633]
[1748123842780,5.6319,177.51,177.47,5.633]
[1748123842980,5.6319,177.51,177.47,5.6706863]
[1748123844181,5.6319,177.51,177.48,5.6326]
[1748123846688,122.6274,177.52,177.48,5.6326]
[1748123848082,5.6318,177.51,177.48,5.6326]
[1748123854500,1.8558,177.52,177.47,5.13967937]
[1748123854700,5.631,177.54,177.5,5.6318]
[1748123854900,5.631,177.54,177.5,5.14354281]
[1748123855604,5.6305,177.55,177.51,5.6317]
[1748123856496,5.6302,177.56,177.52,5.6314]
[1748123856703,130.45872071,177.57,177.52,5.6314]
[1748123857200,5.6304,177.56,177.52,5.6314]
[1748123857503,119.96199307,177.57,177.51,10.73369307]
[1748123858303,5.6305,177.55,177.51,10.73369307]
[1748123858504,119.96199307,177.57,177.52,5.6314]
[1748123858704,114.86,177.57,177.52,5.6314]
[1748123858905,5.6305,177.56,177.51,10.73369307]
[1748123860402,5.6305,177.56,177.52,5.6314]
[1748123865712,5.6299,177.57,177.53,5.6311]
[1748123866012,5.6299,177.57,177.53,5.1406154]
[1748123866715,5.6297,177.58,177.54,5.6308]
[1748123867209,5.6299,177.57,177.54,5.6308]
[1748123867909,3.9051,177.59,177.53,5.1406154]
[1748123868120,12.45582764,177.61,177.55,5.10199307]
[1748123868615,18.08462764,177.61,177.56,5.6299]
[1748123868810,18.08462764,177.61,177.57,0.03703853]
[1748123869314,16.12552764,177.61,177.57,0.03703853]
[1748123869511,16.12552764,177.61,177.57,5.66683853]
[1748123869815,10.49672764,177.61,177.57,0.03703853]
[1748123870109,120.4683,177.62,177.57,0.03703853]
[1748123870410,10.73009307,177.63,177.58,5.6293]
[1748123870913,10.73009307,177.63,177.57,10.7688316]
[1748123871211,5.6284,177.62,177.57,10.7688316]
[1748123871411,5.6284,177.62,177.57,5.66683853]
[1748123871617,5.6284,177.62,177.57,10.7688316]
[1748123872412,5.6287,177.61,177.57,10.7688316]
[1748123877021,5.6287,177.61,177.57,5.66683853]
[1748123888121,5.6287,177.61,177.58,5.6295]
[1748123888722,119.74199307,177.64,177.58,5.6295]
[1748123888723,5.6284,177.62,177.58,5.6295]
[1748123889724,5.6288,177.61,177.57,5.66673853]
[1748123890021,5.6288,177.61,177.57,0.03703853]
[1748123891621,5.6288,177.61,177.58,5.6295]
[1748123894326,5.10199307,177.62,177.57,0.03703853]
[1748123895025,5.6295,177.58,177.57,0.03703853]
[1748123910638,1.8906,177.59,177.57,0.03703853]
[1748123911740,7.52,177.59,177.57,0.03703853]
[1748123914746,5.6295,177.58,177.57,0.03703853]
[1748123918847,16.12622764,177.58,177.57,0.03703853]
[1748123921655,5.6295,177.58,177.57,0.03703853]
[1748123932367,16.12622764,177.58,177.57,0.03703853]
[1748123935066,5.6295,177.58,177.57,0.03703853]
[1748123937660,16.12622764,177.58,177.57,0.03703853]
[1748123943172,21.22326715,177.58,177.57,0.03703853]
[1748123944975,10.72653951,177.58,177.57,0.03703853]
[1748123945475,10.72653951,177.58,177.57,3.853e-05]
[1748123945671,10.73703951,177.58,177.45,7.99547519]
[1748123945876,5.09703951,177.52,177.45,2.89843568]
[1748123946078,114.38,177.51,177.45,2.89843568]
[1748123946270,5.6327,177.49,177.45,2.89843568]
[1748123946668,5.67119288,177.49,177.46,2.0398876]
[1748123947471,5.6327,177.48,177.46,2.0398876]
[1748123947681,0.03849288,177.49,177.46,0.0381876]
[1748123948176,5.6327,177.48,177.46,0.0381876]
[1748123948368,114.38,177.47,177.46,0.0381876]
[1748123948773,120.013,177.47,177.46,0.0381876]
[1748123952283,120.013,177.47,177.46,8.76e-05]
[1748123952677,227.08,177.47,177.36,5.09703951]
[1748123952980,5.09703951,177.39,177.33,1.9527]
[1748123953183,5.09703951,177.37,177.32,3.21695682]
[1748123953383,486.78,177.44,177.25,3.21695682]
[1748123953384,5.09703951,177.35,177.25,3.21695682]
[1748123953576,5.09703951,177.33,177.25,8.31399633]
[1748123953777,5.09703951,177.31,177.28,0.04071219]
[1748123953977,114.4,177.3,177.28,0.04071219]
[1748123954184,5.09703951,177.29,177.28,0.04071219]
[1748123954484,10.73573951,177.29,177.28,0.04071219]
[1748123955086,5.09703951,177.31,177.28,0.04071219]
[1748123955284,114.46,177.3,177.28,0.04071219]
[1748123956081,114.46,177.29,177.28,0.04071219]
[1748123956274,6.97658375,177.31,177.28,0.04071219]
[1748123956471,114.46,177.3,177.28,0.04071219]
[1748123957086,114.46,177.3,177.28,5.67971219]
[1748123957887,114.46,177.3,177.28,0.04071219]
[1748123958585,114.48,177.29,177.28,5.67961219]
[1748123958790,114.48,177.29,177.28,0.04071219]
[1748123964694,114.48,177.29,177.28,5.67981219]
[1748123965693,114.52,177.3,177.28,5.67981219]
[1748123966689,114.52,177.3,177.29,5.6388]
[1748123968500,114.52,177.3,177.28,0.04071219]
[1748123968501,0.03983179,177.32,177.31,5.6381]
[1748123968793,114.38,177.37,177.35,5.6368]
[1748123969387,114.38,177.38,177.29,1.9151]
[1748123969699,0.03684869,177.35,177.32,0.03839159]
[1748123969895,114.38,177.4,177.37,5.636]
[1748123970096,114.38,177.4,177.33,1.8492]
[1748123970397,114.38,177.4,177.37,5.636]
[1748123970793,487.28,177.42,177.33,1.8492]
[1748123971094,487.28,177.42,177.36,0.03619631]
[1748123971398,1.9349,177.5,177.43,5.6341]
[1748123971399,114.38,177.46,177.43,5.6341]
[1748123971590,114.38,177.46,177.43,5.67497366]
[1748123972083,114.38,177.46,177.43,0.04087366]
[1748123972700,120.0136,177.46,177.43,0.04087366]
[1748123973700,114.38,177.46,177.43,0.04087366]
[1748123974200,5.634,177.44,177.43,0.04087366]
[1748123975595,5.634,177.44,177.43,7.366e-05]
[1748123975798,5.6363,177.37,177.34,1.858]
[1748123976099,114.36,177.4,177.34,1.858]
[1748123976285,114.34,177.39,177.33,1.8492]
[1748123976491,114.34,177.38,177.33,1.8492]
[1748123976692,0.03810802,177.37,177.34,0.0369248]
[1748123977199,5.6368,177.36,177.34,0.0369248]
[1748123978695,5.6368,177.35,177.34,0.0369248]
[1748123988308,5.6366,177.36,177.34,0.0369248]
[1748123992510,5.6368,177.35,177.34,0.0369248]
[1748123995010,5.6365,177.36,177.34,0.0369248]
[1748123999612,0.03810802,177.37,177.34,0.0369248]
[1748123999815,0.03810802,177.37,177.36,5.6365]
[1748124002111,0.03810802,177.37,177.36,11.2765]
[1748124002321,5.6344,177.43,177.39,5.6353]
[1748124002921,5.6346,177.42,177.39,5.6353]
[1748124003116,114.28,177.44,177.37,5.6359]
[1748124003315,114.28,177.44,177.32,118.28]
[1748124003619,5.6363,177.37,177.36,0.04158982]
[1748124003811,114.28,177.4,177.31,5.638]
[1748124004016,1.856,177.39,177.26,114.28]
[1748124004410,7.97907565,177.37,177.25,3.21695682]
[1748124004614,5.6387,177.3,177.25,3.21695682]
[1748124004812,5.6387,177.3,177.25,5.6399]
[1748124005119,5.6394,177.27,177.26,0.04065009]
[1748124005721,5.67795471,177.29,177.26,0.04065009]
[1748124006719,0.03915471,177.29,177.26,0.04065009]
[1748124007712,114.3,177.28,177.26,0.04065009]
[1748124010421,119.9392,177.28,177.26,0.04065009]
[1748124010919,5.6394,177.27,177.26,0.04065009]
[1748124011111,114.3,177.28,177.17,116.1907]
[1748124012122,0.04319262,177.24,177.21,0.0393263]
[1748124012323,5.6408,177.23,177.21,0.0393263]
[1748124012621,114.36319262,177.24,177.21,0.0393263]
[1748124013422,114.36319262,177.24,177.21,5.6806263]
[1748124014021,114.36319262,177.24,177.22,5.6409]
[1748124014212,0.04319262,177.24,177.22,5.6409]
[1748124014816,0.04319262,177.24,177.23,5.6407]
[1748124025533,0.04319262,177.24,177.22,5.6409]
[1748124025924,0.04319262,177.24,177.21,0.0393263]
[1748124026833,5.6407,177.23,177.21,0.0393263]
[1748124027931,114.38319262,177.24,177.21,0.0393263]
[1748124029533,5.6409,177.23,177.21,0.0393263]
[1748124033234,120.02359262,177.24,177.21,0.0393263]
[1748124035337,5.6407,177.23,177.21,0.0393263]
[1748124038138,5.641,177.22,177.21,0.0393263]
[1748124051044,7.5524,177.23,177.21,0.0393263]
[1748124054047,5.641,177.22,177.21,0.0393263]
[1748124072659,16.17573758,177.22,177.21,0.0393263]
[1748124074060,5.6432,177.16,177.11,116.1206]
[1748124074251,114.22,177.19,177.11,116.1206]
[1748124074456,114.22,177.19,177.11,1.9006]
[1748124074656,5.6435,177.15,177.11,1.9006]
[1748124075258,5.68607785,177.15,177.11,1.93914727]
[1748124075660,5.6436,177.14,177.11,1.93914727]
[1748124075961,0.04257785,177.15,177.11,0.03854727]
[1748124076663,5.68587785,177.15,177.11,5.68274727]
[1748124078859,5.6436,177.14,177.11,5.68274727]
[1748124079865,5.68587785,177.15,177.11,5.68274727]
[1748124080355,5.68587785,177.15,177.12,5.6442]
[1748124080563,5.68587785,177.15,177.11,0.03854727]
[1748124080564,5.6435,177.14,177.11,0.03854727]
[1748124082059,5.6438,177.13,177.11,0.03854727]
[1748124082360,114.24,177.13,177.11,0.03854727]
[1748124082951,5.6442,177.12,177.11,0.03854727]
[1748124084056,119.8839,177.13,177.11,0.03854727]
[1748124086662,5.6442,177.12,177.11,0.03854727]
[1748124092666,119.8839,177.13,177.11,0.03854727]
[1748124095262,114.24,177.13,177.11,0.03854727]
[1748124097567,10.85150974,177.15,177.11,5.68294727]
[1748124097764,117.48466043,177.14,177.11,0.03854727]
[1748124098172,123.12826043,177.14,177.11,5.68294727]
[1748124098476,3.30466043,177.12,177.11,0.03854727]
[1748124099574,8.94886043,177.12,177.11,0.03854727]
[1748124114681,15.96913786,177.12,177.11,0.03854727]
[1748124116785,8.94886043,177.12,177.11,0.03854727]
[1748124136101,8.94886043,177.12,177.11,4.727e-05]
[1748124143107,8.95011766,177.12,177.11,4.727e-05]
[1748124145115,123.03011766,177.12,177.11,4.727e-05]
[1748124146713,8.95011766,177.12,177.11,4.727e-05]
[1748124147014,123.03018625,177.12,177.11,4.727e-05]
[1748124149419,5.6462,177.06,177.02,5.8221]
[1748124150010,5.6465,177.05,177.02,5.8221]
[1748124150414,5.68689723,177.05,177.02,5.85817529]
[1748124152817,0.04039723,177.05,177.02,11.50537529]
[1748124154825,0.04039723,177.05,177.03,5.647]
[1748124157223,0.04039723,177.05,177.02,11.50537529]
[1748124157425,5.68689723,177.05,177.02,5.85817529]
[1748124157919,0.04039723,177.05,177.02,5.85817529]
[1748124158125,8.95390567,177.03,177.02,0.03607529]
[1748124158325,122.89613238,177.03,177.02,0.03607529]
[1748124159423,5.6484,176.99,176.96,5.8667]
[1748124159630,8.95753238,176.99,176.96,2.0164]
[1748124159828,122.91753238,176.99,176.91,3.30913238]
[1748124160029,122.91753238,176.99,176.93,2.0164]
[1748124160326,122.91753238,176.99,176.94,5.6497]
[1748124160525,0.03753142,176.98,176.95,0.04094157]
[1748124160929,0.03753142,176.98,176.95,5.69044157]
[1748124162729,0.03753142,176.98,176.96,5.6492]
[1748124163227,0.03753142,176.98,176.95,0.04094157]
[1748124163228,5.68623142,176.98,176.95,0.04094157]
[1748124164734,5.649,176.97,176.95,0.04094157]
[1748124165224,5.68623142,176.98,176.95,0.04094157]
[1748124165424,0.03753142,176.98,176.95,0.04094157]
[1748124166629,0.03753142,176.98,176.95,5.69024157]
[1748124169420,0.03753142,176.98,176.95,0.04094157]
[1748124171635,5.68623142,176.98,176.95,5.69034157]
[1748124172834,119.68623142,176.98,176.95,5.69034157]
[1748124173538,114.03753142,176.98,176.95,5.69034157]
[1748124174033,122.9953638,176.98,176.95,5.69034157]
[1748124175037,122.9953638,176.98,176.95,0.04094157]
[1748124175239,119.68623142,176.98,176.95,0.04094157]
[1748124175437,5.649,176.97,176.95,0.04094157]
[1748124185045,114.03753142,176.98,176.96,5.6493]
[1748124185246,0.03753142,176.98,176.96,5.6493]
[1748124185434,0.03753142,176.98,176.95,0.04094157]
[1748124186044,0.03753142,176.98,176.96,5.6493]
[1748124186246,0.03753142,176.98,176.95,0.04094157]
[1748124187046,0.03753142,176.98,176.97,5.6489]
[1748124189146,0.03753142,176.98,176.95,0.04094157]
[1748124189147,0.03753142,176.98,176.96,5.6492]
[1748124189547,0.03753142,176.98,176.95,0.04094157]
[1748124190249,5.68623142,176.98,176.95,0.04094157]
[1748124191348,5.649,176.97,176.95,0.04094157]
[1748124193152,5.68623142,176.98,176.95,5.69044157]
[1748124193345,0.03753142,176.98,176.95,5.69044157]
[1748124194550,5.68623142,176.98,176.95,5.69044157]
[1748124196855,0.03753142,176.98,176.95,5.69044157]
[1748124197059,0.03753142,176.98,176.96,5.6492]
[1748124197755,5.68623142,176.98,176.95,0.04094157]
[1748124198056,0.03753142,176.98,176.95,0.04094157]
[1748124199354,5.6489,176.97,176.95,0.04094157]
[1748124201459,5.6493,176.96,176.95,0.04094157]
[1748124211159,8.9593707,176.96,176.95,0.04094157]
[1748124211368,117.1700707,176.96,176.87,113.86]
[1748124211559,3.3100707,176.93,176.86,6.52702752]
[1748124211759,3.3100707,176.93,176.86,12.17932752]
[1748124212268,0.04142525,176.91,176.88,0.03718296]
[1748124212664,3.35149595,176.91,176.88,0.03718296]
[1748124215374,3.35149595,176.91,176.89,5.6515]
[1748124215674,0.04142525,176.91,176.88,0.03718296]
[1748124215972,0.04142525,176.91,176.89,5.6515]
[1748124216172,0.04142525,176.91,176.88,0.03718296]
[1748124216681,0.04142525,176.91,176.9,5.6512]
[1748124217886,0.04142525,176.91,176.89,5.6514]
[1748124222687,0.04142525,176.91,176.88,5.68898296]
[1748124224582,5.69232525,176.91,176.88,5.68898296]
[1748124224878,5.69232525,176.91,176.88,0.03718296]
[1748124224879,3.35149595,176.91,176.88,0.03718296]
[1748124225083,3.3100707,176.89,176.88,0.03718296]
[1748124226594,8.9615707,176.89,176.88,0.03718296]
[1748124227081,3.3100707,176.89,176.88,0.03718296]
[1748124228493,3.3100707,176.89,176.78,1.8729]
[1748124228684,3.3100707,176.84,176.75,4.0]
[1748124228885,8.9638707,176.82,176.77,5.6551]
[1748124229388,3.3100707,176.82,176.74,116.95695682]
[1748124229582,0.04332329,176.8,176.76,0.03731203]
[1748124229987,0.04332329,176.8,176.79,5.6547]
[1748124230293,3.315697,176.9,176.79,110.715697]
[1748124230479,7.01212903,176.85,176.82,3.315697]
[1748124230683,10.53737141,176.87,176.84,3.315697]
[1748124230882,10.53737141,176.87,176.83,113.74]
[1748124231388,13.88927046,176.87,176.83,0.03655387]
[1748124231690,5.6531,176.84,176.83,0.03655387]
[1748124231984,3.315697,176.85,176.83,0.03655387]
[1748124232180,8.968797,176.85,176.83,0.03655387]
[1748124232392,2.0192,176.85,176.76,3.315697]
[1748124232588,488.48,176.91,176.8,3.315697]
[1748124232589,3.315697,176.89,176.8,3.315697]
[1748124232787,3.315697,176.89,176.87,5.6521]
[1748124232985,3.315697,176.89,176.82,3.315697]
[1748124233384,0.04343198,176.87,176.86,5.6525]